[Event "Early-Titled-Tuesday-Blitz-February-13-2024"]
[Site "Chess.com"]
[Date "2024.02.13"]
[Round "3"]
[White "MIss_MIaMI"]
[Black "JaackCamel"]
[Result "1-0"]
[WhiteElo "2428"]
[BlackElo "2207"]
[TimeControl "180+1"]
[EndTime "8:33:26 PST"]
[Termination "MIss_MIaMI won on time"]

1. e4 {[%clk 0:03:00.9]} 1... e6 {[%clk 0:02:55.9]} 2. d4 {[%clk 0:03:00]} 2...
d5 {[%clk 0:02:55.6]} 3. exd5 {[%clk 0:03:00.9]} 3... exd5 {[%clk 0:02:55]} 4.
Qf3 {[%clk 0:03:01.6]} 4... Nf6 {[%clk 0:02:50.5]} 5. h3 {[%clk 0:03:01.5]} 5...
Nc6 {[%clk 0:02:40]} 6. c3 {[%clk 0:03:01]} 6... Be7 {[%clk 0:02:35.7]} 7. Bd3
{[%clk 0:03:00]} 7... Be6 {[%clk 0:02:29.8]} 8. Ne2 {[%clk 0:02:59.2]} 8... Qd7
{[%clk 0:02:17.1]} 9. g4 {[%clk 0:02:52.4]} 9... h6 {[%clk 0:02:15.9]} 10. Be3
{[%clk 0:02:45.8]} 10... Bd6 {[%clk 0:02:14.5]} 11. Nd2 {[%clk 0:02:45.9]} 11...
Ne7 {[%clk 0:02:12]} 12. Nf4 {[%clk 0:02:45.8]} 12... c6 {[%clk 0:02:03.6]} 13.
O-O-O {[%clk 0:02:34.1]} 13... O-O-O {[%clk 0:02:02.8]} 14. Kb1 {[%clk
0:02:30.8]} 14... Kb8 {[%clk 0:02:02.4]} 15. Nxe6 {[%clk 0:02:29.5]} 15... Qxe6
{[%clk 0:01:57.2]} 16. Rde1 {[%clk 0:02:28]} 16... Qd7 {[%clk 0:01:51.5]} 17.
Bf4 {[%clk 0:02:25.8]} 17... Rhe8 {[%clk 0:01:44.1]} 18. Bxh6 {[%clk 0:02:13.1]}
18... Ne4 {[%clk 0:01:37.9]} 19. Bf4 {[%clk 0:01:55]} 19... Nxd2+ {[%clk
0:01:30.9]} 20. Bxd2 {[%clk 0:01:55]} 20... f6 {[%clk 0:01:25.4]} 21. h4 {[%clk
0:01:31.5]} 21... Qc7 {[%clk 0:01:24.4]} 22. h5 {[%clk 0:01:26.7]} 22... Rh8
{[%clk 0:01:23.3]} 23. Re6 {[%clk 0:01:21.5]} 23... Nc8 {[%clk 0:01:15.4]} 24.
Rhe1 {[%clk 0:01:15]} 24... Rdf8 {[%clk 0:01:14.7]} 25. Bf5 {[%clk 0:01:13.2]}
25... a6 {[%clk 0:01:11.4]} 26. b3 {[%clk 0:00:59.6]} 26... Ka7 {[%clk
0:01:11.4]} 27. Kb2 {[%clk 0:01:00]} 27... Rhg8 {[%clk 0:01:05.8]} 28. Bg6
{[%clk 0:00:59.7]} 28... Rh8 {[%clk 0:01:04.9]} 29. Qd3 {[%clk 0:00:59.9]} 29...
Nb6 {[%clk 0:01:01.4]} 30. Be3 {[%clk 0:00:49]} 30... Ka8 {[%clk 0:00:56.7]} 31.
Qd2 {[%clk 0:00:48.4]} 31... Rd8 {[%clk 0:00:54]} 32. f4 {[%clk 0:00:46.9]}
32... Rhf8 {[%clk 0:00:47.7]} 33. Rf1 {[%clk 0:00:44.2]} 33... Rh8 {[%clk
0:00:47.6]} 34. Qd3 {[%clk 0:00:44.3]} 34... Rdf8 {[%clk 0:00:44.8]} 35. g5
{[%clk 0:00:34.5]} 35... Rd8 {[%clk 0:00:42.3]} 36. gxf6 {[%clk 0:00:33.4]}
36... gxf6 {[%clk 0:00:42.4]} 37. f5 {[%clk 0:00:32.7]} 37... Bf8 {[%clk
0:00:19.8]} 38. Rxf6 {[%clk 0:00:31.5]} 38... Qe7 {[%clk 0:00:18.1]} 39. Re6
{[%clk 0:00:30.6]} 39... Qa3+ {[%clk 0:00:18.1]} 40. Kb1 {[%clk 0:00:29.7]}
40... a5 {[%clk 0:00:17.1]} 41. Bg5 {[%clk 0:00:29.5]} 41... a4 {[%clk 0:00:17]}
42. Qc2 {[%clk 0:00:29.9]} 42... Rb8 {[%clk 0:00:15.6]} 43. Bf4 {[%clk
0:00:29.6]} 43... Rc8 {[%clk 0:00:15.4]} 44. b4 {[%clk 0:00:23.8]} 44... Nc4
{[%clk 0:00:15.4]} 45. Bc1 {[%clk 0:00:23.9]} 45... Bxb4 {[%clk 0:00:07.6]} 46.
Bxa3 {[%clk 0:00:22.6]} 46... Nxa3+ {[%clk 0:00:07.8]} 47. Kb2 {[%clk
0:00:23.3]} 47... Nxc2 {[%clk 0:00:08.1]} 48. Kxc2 {[%clk 0:00:24.2]} 48... Ba3
{[%clk 0:00:07.5]} 49. f6 {[%clk 0:00:22.4]} 49... Rcf8 {[%clk 0:00:07.5]} 50.
f7 {[%clk 0:00:22.8]} 50... Ka7 {[%clk 0:00:06.3]} 51. Re8 {[%clk 0:00:22.1]}
51... Bd6 {[%clk 0:00:05.5]} 52. Rxf8 {[%clk 0:00:22.1]} 52... Bxf8 {[%clk
0:00:05.9]} 53. Re1 {[%clk 0:00:22.3]} 53... Kb6 {[%clk 0:00:05.5]} 54. Re8
{[%clk 0:00:22.6]} 54... Kc7 {[%clk 0:00:05.9]} 55. Kd3 {[%clk 0:00:22.9]} 55...
Kd7 {[%clk 0:00:06.3]} 56. Rb8 {[%clk 0:00:20.4]} 56... b5 {[%clk 0:00:06.6]}
57. Rb7+ {[%clk 0:00:20]} 57... Kd6 {[%clk 0:00:06.3]} 58. Ra7 {[%clk
0:00:19.4]} 58... Ke6 {[%clk 0:00:05.8]} 59. Rc7 {[%clk 0:00:18.4]} 59... Kd6
{[%clk 0:00:06.1]} 60. Rc8 {[%clk 0:00:19.1]} 60... Kd7 {[%clk 0:00:05.9]} 61.
Re8 {[%clk 0:00:19.6]} 61... Kd6 {[%clk 0:00:04.4]} 62. Ke2 {[%clk 0:00:17.2]}
62... a3 {[%clk 0:00:02.7]} 63. Kf3 {[%clk 0:00:17.5]} 63... Kd7 {[%clk
0:00:03.2]} 64. Kg4 {[%clk 0:00:17.9]} 64... Kd6 {[%clk 0:00:03.3]} 65. Kf5
{[%clk 0:00:13.4]} 65... Kd7 {[%clk 0:00:02.1]} 66. Kf6 {[%clk 0:00:11]} 66...
Kd6 {[%clk 0:00:02.4]} 67. Rxf8 {[%clk 0:00:10.9]} 67... Rxf8 {[%clk 0:00:02.3]}
68. Kg7 {[%clk 0:00:11.6]} 68... Ke7 {[%clk 0:00:02.8]} 69. h6 {[%clk
0:00:12.1]} 69... b4 {[%clk 0:00:01.5]} 70. h7 {[%clk 0:00:12.1]} 1-0

[Event "Early-Titled-Tuesday-Blitz-February-13-2024"]
[Site "Chess.com"]
[Date "2024.02.13"]
[Round "3"]
[White "Attacks_Hurricane"]
[Black "Dinosaurio_1975"]
[Result "1/2-1/2"]
[WhiteElo "2314"]
[BlackElo "2574"]
[TimeControl "180+1"]
[EndTime "8:33:30 PST"]
[Termination "Game drawn by repetition"]

1. e4 {[%clk 0:03:00.9]} 1... c6 {[%clk 0:02:59.6]} 2. d4 {[%clk 0:03:00.7]}
2... d5 {[%clk 0:03:00.5]} 3. exd5 {[%clk 0:03:01.6]} 3... cxd5 {[%clk
0:03:01.4]} 4. Nf3 {[%clk 0:03:02.5]} 4... Nc6 {[%clk 0:03:01.3]} 5. Bb5 {[%clk
0:03:02.4]} 5... Bg4 {[%clk 0:03:01.6]} 6. h3 {[%clk 0:03:01.9]} 6... Bh5 {[%clk
0:03:00.3]} 7. g4 {[%clk 0:02:58.7]} 7... Bg6 {[%clk 0:02:59.8]} 8. Ne5 {[%clk
0:02:59.1]} 8... Qc7 {[%clk 0:02:58.6]} 9. Bf4 {[%clk 0:02:57.9]} 9... Qb6
{[%clk 0:02:55.9]} 10. Nc3 {[%clk 0:02:52.6]} 10... e6 {[%clk 0:02:54.1]} 11. a4
{[%clk 0:02:50.5]} 11... Bb4 {[%clk 0:02:46.2]} 12. O-O {[%clk 0:02:44.8]} 12...
Ne7 {[%clk 0:02:19.3]} 13. Ne2 {[%clk 0:02:39.6]} 13... a6 {[%clk 0:02:15.2]}
14. Bxc6+ {[%clk 0:02:37.3]} 14... Nxc6 {[%clk 0:02:14.1]} 15. c3 {[%clk
0:02:36.6]} 15... Be7 {[%clk 0:02:05.5]} 16. Qd2 {[%clk 0:02:33]} 16... Nxe5
{[%clk 0:02:01.6]} 17. Bxe5 {[%clk 0:02:32.9]} 17... h5 {[%clk 0:01:08.8]} 18.
Bxg7 {[%clk 0:02:15.4]} 18... Rh7 {[%clk 0:01:01]} 19. Be5 {[%clk 0:02:14]}
19... hxg4 {[%clk 0:01:00.5]} 20. hxg4 {[%clk 0:02:13.4]} 20... O-O-O {[%clk
0:00:53.1]} 21. Nf4 {[%clk 0:01:58.5]} 21... Be4 {[%clk 0:00:39.6]} 22. f3
{[%clk 0:01:57.5]} 22... f6 {[%clk 0:00:34.8]} 23. fxe4 {[%clk 0:01:56]} 23...
fxe5 {[%clk 0:00:33.7]} 24. Ng6 {[%clk 0:01:38.3]} 24... exd4 {[%clk 0:00:27.7]}
25. Nxe7+ {[%clk 0:01:36.1]} 25... Rxe7 {[%clk 0:00:28.6]} 26. Qxd4 {[%clk
0:01:35.7]} 26... Qxb2 {[%clk 0:00:19.8]} 27. Rab1 {[%clk 0:01:31]} 27... Qe2
{[%clk 0:00:18.8]} 28. exd5 {[%clk 0:01:25.7]} 28... exd5 {[%clk 0:00:12.6]} 29.
Rbe1 {[%clk 0:00:59.3]} 29... Qxe1 {[%clk 0:00:12.4]} 30. Rxe1 {[%clk
0:01:00.2]} 30... Rxe1+ {[%clk 0:00:12.7]} 31. Kf2 {[%clk 0:00:59.8]} 31... Re4
{[%clk 0:00:13.6]} 32. Qc5+ {[%clk 0:00:56.3]} 32... Kb8 {[%clk 0:00:13.3]} 33.
g5 {[%clk 0:00:54.4]} 33... Re5 {[%clk 0:00:09.5]} 34. g6 {[%clk 0:00:51.9]}
34... Rf5+ {[%clk 0:00:05.5]} 35. Ke2 {[%clk 0:00:49]} 35... Re8+ {[%clk
0:00:05.7]} 36. Kd2 {[%clk 0:00:47.2]} 36... Rg8 {[%clk 0:00:05.2]} 37. Qd6+
{[%clk 0:00:46]} 37... Ka8 {[%clk 0:00:04.8]} 38. Qe6 {[%clk 0:00:45.2]} 38...
Rff8 {[%clk 0:00:04.8]} 39. Kd3 {[%clk 0:00:44.7]} 39... Re8 {[%clk 0:00:04.7]}
40. Qf7 {[%clk 0:00:43.2]} 40... Ref8 {[%clk 0:00:04]} 41. Qe6 {[%clk
0:00:41.1]} 41... Re8 {[%clk 0:00:04.3]} 42. Qd6 {[%clk 0:00:41.7]} 42... Rd8
{[%clk 0:00:04.8]} 43. Qg3 {[%clk 0:00:41.5]} 43... Rg7 {[%clk 0:00:03.1]} 44.
Kd4 {[%clk 0:00:37.6]} 44... Rdg8 {[%clk 0:00:04]} 45. Kxd5 {[%clk 0:00:36.1]}
45... Rxg6 {[%clk 0:00:04.9]} 46. Qe3 {[%clk 0:00:30]} 46... Rg5+ {[%clk
0:00:05.4]} 47. Kc4 {[%clk 0:00:30.4]} 47... Rc8+ {[%clk 0:00:05.1]} 48. Kb3
{[%clk 0:00:30.8]} 48... Rgc5 {[%clk 0:00:05.5]} 49. Qd4 {[%clk 0:00:24.3]}
49... a5 {[%clk 0:00:05.4]} 50. Qf6 {[%clk 0:00:22.7]} 50... R8c7 {[%clk
0:00:05.7]} 51. Qd8+ {[%clk 0:00:21.4]} 51... Ka7 {[%clk 0:00:05.6]} 52. Qd4
{[%clk 0:00:21.7]} 52... b6 {[%clk 0:00:05.9]} 53. Kb2 {[%clk 0:00:21.3]} 53...
Rc4 {[%clk 0:00:04.6]} 54. Qd6 {[%clk 0:00:20.2]} 54... R7c6 {[%clk 0:00:04.6]}
55. Qd7+ {[%clk 0:00:20.4]} 55... Ka6 {[%clk 0:00:05]} 56. Qd8 {[%clk
0:00:19.7]} 56... Rc8 {[%clk 0:00:05.5]} 57. Qd7 {[%clk 0:00:20]} 57... Rxc3
{[%clk 0:00:03.7]} 58. Qb5+ {[%clk 0:00:20.6]} 58... Ka7 {[%clk 0:00:03.4]} 59.
Qd7+ {[%clk 0:00:21.1]} 59... R3c7 {[%clk 0:00:04.2]} 60. Qd4 {[%clk 0:00:20.5]}
60... Rc2+ {[%clk 0:00:03.8]} 61. Kb3 {[%clk 0:00:21.2]} 61... R2c5 {[%clk
0:00:04.2]} 62. Qd7+ {[%clk 0:00:21.4]} 62... R8c7 {[%clk 0:00:05.1]} 63. Qd4
{[%clk 0:00:21]} 63... Rc1 {[%clk 0:00:03.8]} 64. Kb2 {[%clk 0:00:20.4]} 64...
R1c4 {[%clk 0:00:04.2]} 65. Qd1 {[%clk 0:00:19.1]} 65... Rb4+ {[%clk 0:00:04.5]}
66. Ka2 {[%clk 0:00:19.3]} 66... Kb7 {[%clk 0:00:03.1]} 67. Qd5+ {[%clk
0:00:19.4]} 67... Ka7 {[%clk 0:00:03.7]} 68. Qd1 {[%clk 0:00:19.5]} 68... Rcc4
{[%clk 0:00:03.1]} 69. Qd7+ {[%clk 0:00:19.4]} 69... Kb8 {[%clk 0:00:03.7]} 70.
Qd8+ {[%clk 0:00:19.5]} 70... Rc8 {[%clk 0:00:03.2]} 71. Qd6+ {[%clk 0:00:19.6]}
71... Kb7 {[%clk 0:00:03.6]} 72. Qd7+ {[%clk 0:00:19.6]} 72... Rc7 {[%clk
0:00:03.9]} 73. Qd5+ {[%clk 0:00:19.9]} 73... Ka7 {[%clk 0:00:04.4]} 74. Qd1
{[%clk 0:00:20.1]} 1/2-1/2

[Event "Early-Titled-Tuesday-Blitz-February-13-2024"]
[Site "Chess.com"]
[Date "2024.02.13"]
[Round "3"]
[White "KorolDimitriy75"]
[Black "Mikhail_Golubev"]
[Result "0-1"]
[WhiteElo "2409"]
[BlackElo "2696"]
[TimeControl "180+1"]
[EndTime "8:33:30 PST"]
[Termination "Mikhail_Golubev won by resignation"]

1. d4 {[%clk 0:03:00.9]} 1... Nf6 {[%clk 0:02:58.3]} 2. c4 {[%clk 0:03:01.8]}
2... g6 {[%clk 0:02:57.8]} 3. Nc3 {[%clk 0:03:02.6]} 3... Bg7 {[%clk 0:02:58.3]}
4. e4 {[%clk 0:03:03.2]} 4... d6 {[%clk 0:02:58.6]} 5. Nf3 {[%clk 0:03:04.1]}
5... O-O {[%clk 0:02:58.4]} 6. Be2 {[%clk 0:03:05]} 6... e5 {[%clk 0:02:57.6]}
7. dxe5 {[%clk 0:03:05.9]} 7... dxe5 {[%clk 0:02:57.3]} 8. Qxd8 {[%clk
0:03:06.8]} 8... Rxd8 {[%clk 0:02:57.1]} 9. Bg5 {[%clk 0:03:07.5]} 9... c6
{[%clk 0:02:56.3]} 10. Nxe5 {[%clk 0:03:06.7]} 10... Re8 {[%clk 0:02:54.8]} 11.
O-O-O {[%clk 0:03:06.6]} 11... Na6 {[%clk 0:02:54.8]} 12. Rd6 {[%clk 0:03:06.2]}
12... Nh5 {[%clk 0:02:48.4]} 13. Nf3 {[%clk 0:02:43.8]} 13... Nc5 {[%clk
0:02:28.8]} 14. Rhd1 {[%clk 0:02:22.9]} 14... Bxc3 {[%clk 0:02:17.2]} 15. bxc3
{[%clk 0:02:22.7]} 15... Nxe4 {[%clk 0:02:16.9]} 16. Rd8 {[%clk 0:02:22.1]}
16... Be6 {[%clk 0:01:52.2]} 17. Rxa8 {[%clk 0:01:24]} 17... Rxa8 {[%clk
0:01:53.1]} 18. Kb2 {[%clk 0:00:51.1]} 18... Nxg5 {[%clk 0:01:29.4]} 19. Nxg5
{[%clk 0:00:50.5]} 19... Nf4 {[%clk 0:01:29.9]} 20. Bf1 {[%clk 0:00:48.3]} 20...
h6 {[%clk 0:01:02.5]} 21. Nxe6 {[%clk 0:00:47.3]} 21... Nxe6 {[%clk 0:01:03.4]}
22. Rd7 {[%clk 0:00:41.4]} 22... Nc5 {[%clk 0:01:03.3]} 23. Re7 {[%clk
0:00:23.8]} 23... Kf8 {[%clk 0:01:03]} 24. Re5 {[%clk 0:00:22.6]} 24... b6
{[%clk 0:00:57.3]} 25. Be2 {[%clk 0:00:15]} 25... Re8 {[%clk 0:00:50.4]} 26.
Rxe8+ {[%clk 0:00:14.1]} 26... Kxe8 {[%clk 0:00:51]} 27. Bf3 {[%clk 0:00:11.1]}
27... Kd7 {[%clk 0:00:50.7]} 28. Kc2 {[%clk 0:00:11.2]} 28... Kd6 {[%clk
0:00:50.5]} 29. Kd2 {[%clk 0:00:10.9]} 29... Nd7 {[%clk 0:00:48.6]} 30. g3
{[%clk 0:00:10.5]} 30... Ne5 {[%clk 0:00:48]} 31. Be2 {[%clk 0:00:11.4]} 31...
Kc5 {[%clk 0:00:48.2]} 32. Ke3 {[%clk 0:00:09.4]} 32... Nxc4+ {[%clk 0:00:47.7]}
33. Kf4 {[%clk 0:00:08]} 33... Kd5 {[%clk 0:00:36.6]} 34. Bf3+ {[%clk
0:00:06.8]} 34... Kd6 {[%clk 0:00:35.6]} 35. h4 {[%clk 0:00:06.4]} 35... Ne5
{[%clk 0:00:29.5]} 36. Be2 {[%clk 0:00:06.3]} 36... Ke6 {[%clk 0:00:27.6]} 37.
Ke4 {[%clk 0:00:05.9]} 37... f6 {[%clk 0:00:26.3]} 38. f4 {[%clk 0:00:05.4]}
38... f5+ {[%clk 0:00:24.4]} 39. Ke3 {[%clk 0:00:05.4]} 39... Nd7 {[%clk
0:00:19.1]} 40. Bc4+ {[%clk 0:00:04.2]} 40... Kf6 {[%clk 0:00:18.2]} 41. Kd4
{[%clk 0:00:05.1]} 41... g5 {[%clk 0:00:18]} 42. Bb3 {[%clk 0:00:03.9]} 42...
gxh4 {[%clk 0:00:17.1]} 43. gxh4 {[%clk 0:00:04.8]} 43... Nf8 {[%clk 0:00:16.4]}
44. Bc2 {[%clk 0:00:02.9]} 44... Ng6 {[%clk 0:00:16]} 45. h5 {[%clk 0:00:03.3]}
45... Nxf4 {[%clk 0:00:15.6]} 46. Bd1 {[%clk 0:00:03.1]} 46... Ne6+ {[%clk
0:00:15.5]} 47. Kc4 {[%clk 0:00:02.4]} 47... Ke5 {[%clk 0:00:15.3]} 48. Bf3
{[%clk 0:00:03.3]} 48... Nd8 {[%clk 0:00:10.9]} 49. a4 {[%clk 0:00:02.8]} 49...
Kd6 {[%clk 0:00:10.1]} 50. Kd4 {[%clk 0:00:02.8]} 50... Nf7 {[%clk 0:00:09.8]}
51. Bh1 {[%clk 0:00:01.3]} 51... Ng5 {[%clk 0:00:09.2]} 52. c4 {[%clk
0:00:02.2]} 52... c5+ {[%clk 0:00:08.2]} 53. Ke3 {[%clk 0:00:02.5]} 53... Ke5
{[%clk 0:00:08.8]} 54. Bc6 {[%clk 0:00:02.6]} 54... f4+ {[%clk 0:00:09]} 55. Kf2
{[%clk 0:00:03.2]} 55... Kd4 {[%clk 0:00:08.3]} 56. Kg2 {[%clk 0:00:02.5]} 56...
Kxc4 {[%clk 0:00:07.8]} 57. Bb5+ {[%clk 0:00:02.9]} 57... Kd4 {[%clk 0:00:08]}
58. Kf2 {[%clk 0:00:02.6]} 58... c4 {[%clk 0:00:08.3]} 59. Bd7 {[%clk
0:00:02.4]} 59... c3 {[%clk 0:00:08.4]} 60. Bf5 {[%clk 0:00:03.1]} 60... Kc4
{[%clk 0:00:07.8]} 61. Ke2 {[%clk 0:00:03.1]} 61... Kb3 {[%clk 0:00:07.6]} 62.
Kd1 {[%clk 0:00:02.1]} 62... Kb2 {[%clk 0:00:07.8]} 63. Bc2 {[%clk 0:00:02.7]}
63... f3 {[%clk 0:00:08]} 64. Bd3 {[%clk 0:00:02.7]} 64... f2 {[%clk 0:00:08.2]}
65. Ke2 {[%clk 0:00:03]} 65... c2 {[%clk 0:00:08.5]} 66. Bxc2 {[%clk 0:00:03.5]}
66... Kxc2 {[%clk 0:00:09.4]} 67. Kxf2 {[%clk 0:00:04.2]} 67... Kb3 {[%clk
0:00:09.9]} 68. Kg3 {[%clk 0:00:05.1]} 68... Kxa4 {[%clk 0:00:09.8]} 69. Kf4
{[%clk 0:00:06]} 69... Kb3 {[%clk 0:00:10.1]} 70. Kf5 {[%clk 0:00:06.5]} 70...
a5 {[%clk 0:00:10.4]} 71. Kg6 {[%clk 0:00:07.4]} 71... a4 {[%clk 0:00:10.3]} 72.
Kxh6 {[%clk 0:00:08]} 72... Ne6 {[%clk 0:00:10.4]} 73. Kg6 {[%clk 0:00:07.5]}
73... Nf4+ {[%clk 0:00:10]} 74. Kg5 {[%clk 0:00:07.5]} 74... Nxh5 {[%clk
0:00:10.9]} 75. Kxh5 {[%clk 0:00:08.4]} 75... a3 {[%clk 0:00:11.3]} 0-1

[Event "Early-Titled-Tuesday-Blitz-February-13-2024"]
[Site "Chess.com"]
[Date "2024.02.13"]
[Round "3"]
[White "mitrabhaa"]
[Black "GianmarcoVaR"]
[Result "0-1"]
[WhiteElo "2912"]
[BlackElo "2719"]
[TimeControl "180+1"]
[EndTime "8:33:34 PST"]
[Termination "GianmarcoVaR won on time"]

1. d4 {[%clk 0:02:53.4]} 1... Nf6 {[%clk 0:02:54.1]} 2. Nf3 {[%clk 0:02:52.8]}
2... e6 {[%clk 0:02:52.1]} 3. Bf4 {[%clk 0:02:50.6]} 3... b6 {[%clk 0:02:46.9]}
4. e3 {[%clk 0:02:50.6]} 4... Bb7 {[%clk 0:02:44.5]} 5. Nbd2 {[%clk 0:02:51]}
5... Bd6 {[%clk 0:02:44.7]} 6. Bxd6 {[%clk 0:02:47.7]} 6... cxd6 {[%clk
0:02:44.9]} 7. c4 {[%clk 0:02:48.4]} 7... d5 {[%clk 0:02:38.1]} 8. cxd5 {[%clk
0:02:48.5]} 8... Nxd5 {[%clk 0:02:33.8]} 9. e4 {[%clk 0:02:48.7]} 9... Nf6
{[%clk 0:02:32.4]} 10. Bd3 {[%clk 0:02:47]} 10... d6 {[%clk 0:02:32.3]} 11. Qa4+
{[%clk 0:02:41.4]} 11... Bc6 {[%clk 0:02:31.1]} 12. Qc2 {[%clk 0:02:40.6]} 12...
h6 {[%clk 0:02:10.7]} 13. Rc1 {[%clk 0:02:27.5]} 13... O-O {[%clk 0:02:08.1]}
14. O-O {[%clk 0:02:28.1]} 14... Bb7 {[%clk 0:01:58.7]} 15. Qa4 {[%clk
0:02:10.5]} 15... a6 {[%clk 0:01:52.4]} 16. Rc2 {[%clk 0:02:07.8]} 16... b5
{[%clk 0:01:52.4]} 17. Qa3 {[%clk 0:02:07.3]} 17... Nc6 {[%clk 0:01:49.4]} 18.
Rfc1 {[%clk 0:02:06.3]} 18... Qb6 {[%clk 0:01:45.7]} 19. Qxd6 {[%clk 0:02:05.3]}
19... Rfd8 {[%clk 0:01:45.2]} 20. Qc5 {[%clk 0:00:58.1]} 20... Qxc5 {[%clk
0:01:45.1]} 21. Rxc5 {[%clk 0:00:59]} 21... Nxd4 {[%clk 0:01:45.7]} 22. Rc7
{[%clk 0:00:50.1]} 22... Nxf3+ {[%clk 0:00:47]} 23. Nxf3 {[%clk 0:00:48.8]}
23... Bxe4 {[%clk 0:00:47.3]} 24. Bxe4 {[%clk 0:00:48]} 24... Nxe4 {[%clk
0:00:48.2]} 25. Ne5 {[%clk 0:00:48.7]} 25... Rd5 {[%clk 0:00:35.2]} 26. Nc6
{[%clk 0:00:43.2]} 26... Kf8 {[%clk 0:00:30.7]} 27. f3 {[%clk 0:00:39.5]} 27...
Nf6 {[%clk 0:00:28.7]} 28. Nb4 {[%clk 0:00:36]} 28... Rd4 {[%clk 0:00:24.6]} 29.
Rc8+ {[%clk 0:00:34.1]} 29... Rd8 {[%clk 0:00:22.5]} 30. Rxd8+ {[%clk
0:00:20.2]} 30... Rxd8 {[%clk 0:00:22.5]} 31. Nxa6 {[%clk 0:00:21.1]} 31... Rd2
{[%clk 0:00:21]} 32. Rc8+ {[%clk 0:00:21.1]} 32... Ke7 {[%clk 0:00:18.9]} 33.
Rc7+ {[%clk 0:00:21.5]} 33... Ke8 {[%clk 0:00:19.1]} 34. Rc8+ {[%clk 0:00:18.5]}
34... Ke7 {[%clk 0:00:18.2]} 35. Rc7+ {[%clk 0:00:18.7]} 35... Ke8 {[%clk
0:00:04]} 36. Rb7 {[%clk 0:00:16.9]} 36... Rxb2 {[%clk 0:00:03.3]} 37. a4 {[%clk
0:00:17.5]} 37... Nd5 {[%clk 0:00:03.1]} 38. axb5 {[%clk 0:00:17.1]} 38... Ne3
{[%clk 0:00:03.2]} 39. g4 {[%clk 0:00:12.2]} 39... Rg2+ {[%clk 0:00:03.2]} 40.
Kh1 {[%clk 0:00:12.8]} 40... Rf2 {[%clk 0:00:03.9]} 41. h4 {[%clk 0:00:13]}
41... Rxf3 {[%clk 0:00:04.5]} 42. b6 {[%clk 0:00:11.6]} 42... Rf1+ {[%clk
0:00:01.5]} 43. Kh2 {[%clk 0:00:11.8]} 43... Nxg4+ {[%clk 0:00:01.8]} 44. Kg3
{[%clk 0:00:12.5]} 44... Ne5 {[%clk 0:00:01.9]} 45. Rc7 {[%clk 0:00:12.8]} 45...
Rb1 {[%clk 0:00:02.1]} 46. b7 {[%clk 0:00:13]} 46... Nd7 {[%clk 0:00:02.8]} 47.
Kf3 {[%clk 0:00:11.7]} 47... g5 {[%clk 0:00:03.2]} 48. h5 {[%clk 0:00:11.8]}
48... f5 {[%clk 0:00:03.4]} 49. Ke3 {[%clk 0:00:12.1]} 49... e5 {[%clk
0:00:03.9]} 50. Kd3 {[%clk 0:00:12.4]} 50... g4 {[%clk 0:00:04.5]} 51. Kc3
{[%clk 0:00:09.8]} 51... Rc1+ {[%clk 0:00:04.2]} 52. Kd3 {[%clk 0:00:09]} 52...
Rxc7 {[%clk 0:00:05.1]} 53. Nxc7+ {[%clk 0:00:09.9]} 53... Ke7 {[%clk
0:00:05.5]} 54. Nd5+ {[%clk 0:00:06.3]} 54... Ke6 {[%clk 0:00:06]} 55. Nc7+
{[%clk 0:00:05.8]} 55... Kf6 {[%clk 0:00:05.9]} 56. Ne8+ {[%clk 0:00:05]} 56...
Kg5 {[%clk 0:00:05.4]} 57. Ke3 {[%clk 0:00:05.5]} 57... Nb8 {[%clk 0:00:03.9]}
58. Nd6 {[%clk 0:00:05.3]} 58... Kxh5 {[%clk 0:00:02.5]} 59. Nxf5 {[%clk
0:00:05.7]} 59... Kg5 {[%clk 0:00:03]} 60. Nd6 {[%clk 0:00:05.4]} 60... h5
{[%clk 0:00:03]} 61. Ke4 {[%clk 0:00:05.9]} 61... h4 {[%clk 0:00:02.5]} 62. Nf7+
{[%clk 0:00:06.2]} 62... Kf6 {[%clk 0:00:03]} 63. Nxe5 {[%clk 0:00:07.1]} 63...
g3 {[%clk 0:00:02.6]} 64. Nf3 {[%clk 0:00:07.1]} 64... h3 {[%clk 0:00:02.5]} 0-1